Cogmind - Beta 13 @@@ ROGUE MODE // 2024.04.04 @ 22:13:17 Player: Bobert Result: Destroyed by G-47 Trooper with Particle Gun Performance ------------- Evolutions (2) 1000 Regions Visited (4) 800 Robots Destroyed (59) 295 Value Destroyed (1798) 1798 Prototype IDs (2) 40 Alien Tech Used (0) 0 Bonus (88) 88 TOTAL SCORE: 4021 Bonus ------- High Alert Combat Kills 88 Cogmind --------- Core Integrity 0/550 Matter 300/300 Energy 160/160 System Corruption 1% Temperature Cool (9) Movement Hovering (180) Ox2 Location -8/Materials Parts ------- > --- POWER (1) -------- Light Nuclear Core > --- PROPULSION (4) --- Airjet > --- UTILITY (4) ------ Improved Heat Sink Medium Storage Unit Improved Signal Interpreter > --- WEAPON (2) ------- Katana > --- INVENTORY (10) --- Airjet Airjet Improved Heat Sink Improved Sensor Array Hacking Suite System Shield Particle Gun Heavy Assault Rifle Peak State ------------ > --- POWER ------------ Light Nuclear Core > --- PROPULSION ------- Gravmag System Gravmag System Gravmag System Gravmag System > --- UTILITY ---------- Heat Sink Improved Signal Interpreter Light Armor Plating Tractor Beam > --- WEAPON ----------- Advanced Beam Rifle Advanced Beam Rifle > --- INVENTORY -------- Light Deuterium Engine Sensor Array Microactuators Microactuators Grenade Launcher [Rating: 34] Favorites ----------- Power Light Nuclear Core Engine Light Ion Engine Power Core Light Nuclear Core Propulsion Gravmag System Treads Light Treads Leg Aluminum Leg Wheel Compact Wheel Hover Unit Gravmag System Utility Improved Signal Interpreter Device Heat Sink Storage Medium Storage Unit Processor Improved Signal Interpreter Protection Light Armor Plating Weapon Improved EM Shotgun Energy Gun Improved EM Shotgun Ballistic Gun Assault Rifle Launcher Grenade Launcher Impact Weapon Hammer Slashing Weapon Katana Build | -11 -10 -10 -9 -8 ------- Run | Yrd Mat Min Mat Mat Slots Evolved 4 | . . . 2 2 Power . | . . . . . Propulsion 2 | . . . . 2 Utility 2 | . . . 2 . Weapon . | . . . . . Parts Attached 81 | 5 6 1 18 51 Power 8 | 1 1 . 2 4 Engine 5 | 1 1 . 2 1 Core 3 | . . . . 3 Reactor . | . . . . . Propulsion 26 | 2 1 1 3 19 Treads 1 | . . . . 1 Leg 5 | . 1 . 1 3 Wheel 7 | 2 . 1 2 2 Hover 13 | . . . . 13 Flight . | . . . . . Utility 17 | 1 2 . 2 12 Device 12 | . 1 . 2 9 Storage 2 | 1 . . . 1 Processor 1 | . . . . 1 Hackware . | . . . . . Protection 2 | . 1 . . 1 Artifact . | . . . . . Weapon 30 | 1 2 . 11 16 Energy Gun 18 | 1 . . 7 10 Energy Cannon . | . . . . . Ballistic Gun 1 | . 1 . . . Ballistic Cannon . | . . . . . Launcher 6 | . . . 3 3 Special Weapon . | . . . . . Impact Weapon 2 | . 1 . 1 . Slashing Weapon 3 | . . . . 3 Piercing Weapon . | . . . . . Special Melee Weapon . | . . . . . Unidentified Prototypes 2 | . . . 1 1 Parts Lost 30 | . 4 . 4 22 Power 4 | . 1 . 1 2 Propulsion 12 | . 1 . 1 10 Utility 7 | . . . 1 6 Weapon 7 | . 2 . 1 4 Highest Loss Streak 10 | . 4 . 3 10 To Critical Strikes . | . . . . . Average Slot Usage (%) 67 | . 55 57 43 81 Engine 2 | . 2 . 5 1 Core 3 | . . . . 6 Treads 1 | . . . . 2 Leg 3 | . 3 7 . 5 Wheel 5 | . 12 7 6 2 Hover 8 | . . . 1 13 Device 15 | . 3 14 11 18 Storage 2 | . 7 . . 3 Processor 5 | . . . . 8 Protection 2 | . 5 14 1 1 Energy Gun 10 | . 6 . 11 10 Launcher 1 | . . . 1 1 Impact Weapon 2 | . 5 14 3 . Slashing Weapon 2 | . . . . 4 Naked Turns 10 | . 10 . . . Heaviest Build 25 | 10 12 6 13 25 Greatest Support 38 | 26 26 16 28 38 Greatest Overweight (x) 2 | . 1 . 2 2 Average Overweight (x) . | . . . . . Largest Inventory Capacity 10 | 8 8 5 5 10 Average Capacity 6 | 7 6 5 5 6 Most Carried 8 | 2 1 2 5 8 Average Carried 3 | 1 . 1 3 4 Final Capacity 10 | 8 5 5 5 10 Final Carried 8 | 2 1 2 5 8 Class Distribution -------------------- 48% | Scavenger-Mutant 43% | Mutant 8% | Scavenger-Gladiator Dominant Class ---------------- Mutant | -10/Materials Mutant | -10/Mines Mutant | -9/Materials Scavenger-Mutant | -8/Materials Resources | -11 -10 -10 -9 -8 ----------- Run | Yrd Mat Min Mat Mat Matter Collected 1156 | 180 95 132 222 527 Remotely 163 | . . . 40 123 Salvage Created 2609 | 64 178 266 646 1455 Parts 109 | 1 8 3 19 78 Haulers Intercepted 4 | . . . 3 1 Recyclers Shooed 4 | . 1 1 2 . Parts Field Recycled . | . . . . . Retrieved Matter . | . . . . . Parts Self-Destructed . | . . . . . Prevented . | . . . . . Kills | -11 -10 -10 -9 -8 ------- Run | Yrd Mat Min Mat Mat Combat Hostiles Destroyed 35 | . 4 2 7 22 Melee 8 | . 2 1 . 5 Guns 17 | . 2 . 2 13 AOE 7 | . . . 3 4 Classes Destroyed 10 | 1 1 1 4 3 Worker 4 | . . 2 . 2 Builder 1 | . . . . 1 Tunneler 1 | . . . . 1 Hauler 4 | . . . 3 1 Recycler 9 | 1 . 2 3 3 Operator 2 | . . . 1 1 Watcher 3 | . . . 1 2 Grunt 25 | . 4 2 5 14 Duelist 3 | . . . . 3 Sentry 7 | . . . 2 5 Best Kill Streak 6 | 1 3 4 4 6 Combat Bots Only 4 | . 3 2 2 4 Max Kills in Single Turn 2 | 1 1 1 2 2 Gunslinging . | . . . . . Exploded 1 | . . . 1 1 Melee 1 | . 1 1 . 1 Uniques/NPCs Destroyed . | . . . . . Combat | -11 -10 -10 -9 -8 -------- Run | Yrd Mat Min Mat Mat Hostile Shots Fired 313 | . 57 10 49 197 Missed 87 | . 16 2 14 55 Damage Taken 3339 | . 516 114 452 2257 Core 980 | . 207 29 187 557 Absorbed by Shields . | . . . . . Core Remaining (%) 52 | 100 . 5 53 . Volleys Fired 125 | 5 22 . 31 67 Largest 2 | 1 2 . 2 2 Hottest 126 | 50 70 . 90 126 Shots Fired 207 | 5 42 . 45 115 Gun 193 | 5 42 . 39 107 Cannon . | . . . . . Launcher 14 | . . . 6 8 Special . | . . . . . Kinetic 20 | . 20 . . . Thermal 127 | 5 22 . 10 90 Explosive 14 | . . . 6 8 Electromagnetic 46 | . . . 29 17 Robot Hit Streak 15 | 3 7 . 7 15 Robot Miss Streak 7 | 1 2 . 7 6 Penetration Max . | . . . . . Secondary Targets 1 | . . . 1 . Max Gunslinging Chain 1 | . . . 1 . Shots Hit Robots 191 | 4 33 8 46 100 Core Hits 95 | 2 9 2 25 57 Critical Kills . | . . . . . Critical Parts Destroyed 3 | . . 1 2 . Critical Strikes 15 | . 1 1 3 10 Burn 7 | . 1 . . 6 Smash 4 | . . 1 3 . Sever 4 | . . . . 4 Melee Attacks 75 | . 4 10 15 46 Impact 29 | . 4 10 15 . Slashing 46 | . . . . 46 Piercing . | . . . . . Sneak Attacks 8 | . 1 4 2 1 Combat Hostiles . | . . . . . Follow-up Attacks 1 | . . . . 1 Damage Inflicted 4720 | 49 479 300 1321 2571 Guns 2214 | 49 352 . 470 1343 Cannons . | . . . . . Explosions 848 | . . . 499 349 Melee 1642 | . 116 300 352 874 Ramming 16 | . 11 . . 5 Kinetic 176 | . 176 . . . Thermal 1504 | 49 176 . 140 1139 Explosive 809 | . . . 460 349 Electromagnetic 573 | . . . 369 204 Impact 768 | . 116 300 352 . Slashing 874 | . . . . 874 Piercing . | . . . . . Highest Corruption 1 | . . . . 1 Average Corruption 1 | . . . . 1 Corruption Purged . | . . . . . Corruption Blocked . | . . . . . Effects 4 | . . . . 4 Message Errors 1 | . . . . 1 Heat Flow Errors 2 | . . . . 2 Misfires 1 | . . . . 1 Overload Shots . | . . . . . Overflow Damage 189 | . . 93 82 14 Projectiles . | . . . . . Explosions . | . . . . . Melee 189 | . . 93 82 14 Knockbacks 6 | . 2 1 3 . Impact 6 | . 2 1 3 . Kinetic . | . . . . . Secondary . | . . . . . Self-Inflicted Damage 46 | . 4 . 8 34 Shots 2 | . . . 1 1 Rammed 6 | . 5 . . 1 Targets Rammed 6 | . 5 . . 1 Kicked . | . . . . . Crushed . | . . . . . Highest Temperature 219 | 50 120 5 30 219 Average Temperature 60 | 26 41 5 12 75 Received Heat Transfer 1815 | . 297 84 183 1251 Siege Activations . | . . . . . Robots Corrupted 2 | . . . 2 . Combat Hostiles 2 | . . . 2 . Parts Fried 14 | . . 6 8 . Impact Corruptions 9 | . . 4 5 . Robots Melted . | . . . . . Combat Hostiles . | . . . . . Parts Melted 7 | . . . . 7 Heat Transferred 3668 | 148 592 . 309 2619 Parts Sabotaged . | . . . . . Parts Stolen . | . . . . . Parts Stripped . | . . . . . Power Chain Reactions 2 | . . . 1 1 Alert | -11 -10 -10 -9 -8 ------- Run | Yrd Mat Min Mat Mat Peak Influence 555 | 5 90 119 257 555 Initial 46 | . 3 34 46 29 Average 242 | 1 38 59 109 365 Maximum Alert Level 2 | . . . 1 2 Low Security (%) 45 | 100 100 100 87 10 Level 1 29 | . . . 12 46 Level 2 24 | . . . . 42 Level 3 . | . . . . . Level 4 . | . . . . . Level 5 . | . . . . . High Security . | . . . . . Max Security . | . . . . . Squads Dispatched 9 | . 1 . 2 6 Investigation 4 | . . . 1 3 Extermination . | . . . . . Reinforcement 3 | . 1 . 1 1 Assault 1 | . . . . 1 Garrison 1 | . . . . 1 Intercept . | . . . . . Searches Triggered . | . . . . . Construction Impeded . | . . . . . Haulers Reinforced . | . . . . . Active Scanning Responses . | . . . . . Cargo Convoy Interrupts . | . . . . . Stealth | -11 -10 -10 -9 -8 --------- Run | Yrd Mat Min Mat Mat Distress Signals 4 | . 1 . 1 2 Communications Jammed . | . . . . . Distress Signals . | . . . . . Times Spotted 58 | . 9 2 13 34 Peak Tracking Total 5 | . 4 2 3 5 Tactical Retreats 4 | . . . . 4 Traps | -11 -10 -10 -9 -8 ------- Run | Yrd Mat Min Mat Mat Traps Triggered 1 | . . . . 1 Indirectly . | . . . . . Trap Hack Attempts . | . . . . . Triggered . | . . . . . Disarmed . | . . . . . Reprogrammed . | . . . . . Reused . | . . . . . Traps Extracted . | . . . . . Installed . | . . . . . Triggered . | . . . . . Machines | -11 -10 -10 -9 -8 ---------- Run | Yrd Mat Min Mat Mat Machines Disabled 1 | . . . . 1 Max in Single Turn 1 | . . . . 1 Garrison Access 1 | . . . . 1 Machines Repaired . | . . . . . Machines Dismantled . | . . . . . Machines Sabotaged . | . . . . . Overloaded Fab Kills . | . . . . . Hacking | -11 -10 -10 -9 -8 --------- Run | Yrd Mat Min Mat Mat Machines Accessed 8 | . 1 . 4 3 Terminals 4 | . 1 . 3 . Fabricators . | . . . . . Repair Stations 1 | . . . 1 . Recycling Units 1 | . . . . 1 Scanalyzers 1 | . . . . 1 Garrison Access 1 | . . . . 1 Total Hacks 25 | . 3 . 10 12 Successful 17 | . 2 . 7 8 Failed 8 | . 1 . 3 4 Catastrophic 2 | . 1 . . 1 Database Lockouts . | . . . . . Manual 6 | . 3 . 3 . Terminals 12 | . 3 . 9 . Fabricators . | . . . . . Repair Stations 1 | . . . 1 . Recycling Units 1 | . . . . 1 Scanalyzers 9 | . . . . 9 Garrison Access 2 | . . . . 2 Terminal Hacks 5 | . 1 . 4 . Record 1 | . . . 1 . Alert Level 1 | . . . 1 . Unreport Threat 1 | . . . 1 . Locate Traps 1 | . . . 1 . Recall Investigation 1 | . 1 . . . Fabricator Hacks . | . . . . . Repair Station Hacks 1 | . . . 1 . Refit 1 | . . . 1 . Recycling Unit Hacks 1 | . . . . 1 Report Inventory 1 | . . . . 1 Scanalyzer 7 | . . . . 7 Insert Component 4 | . . . . 4 Analyze 3 | . . . . 3 Garrison Access Hacks . | . . . . . Unauthorized Hacks 3 | . 1 . 2 . Terminals 3 | . 1 . 2 . Botnet 3 | . 1 . 2 . Fabricators . | . . . . . Repair Stations . | . . . . . Recycling Units . | . . . . . Scanalyzers . | . . . . . Garrison Access . | . . . . . Data Cores Recovered 1 | . . . 1 . Used . | . . . . . Hacking Detections 5 | . . . 3 2 Full Trace Events 3 | . . . 1 2 Feedback Events 1 | . . . . 1 Corruption 1 | . . . . 1 Feedback Blocked . | . . . . . Robot Schematics Acquired . | . . . . . Robots Built . | . . . . . Authchips . | . . . . . Time . | . . . . . Total Robot Build Rating . | . . . . . Part Schematics Acquired 3 | . . . . 3 Parts Built . | . . . . . Authchips . | . . . . . Time . | . . . . . Total Part Build Rating . | . . . . . Parts Repaired . | . . . . . Time . | . . . . . Parts Recycled . | . . . . . Recycled Matter . | . . . . . Retrieved Matter . | . . . . . Retrieved Components . | . . . . . Parts Scanalyzed 3 | . . . . 3 Part Schematics Acquired 3 | . . . . 3 Parts Damaged . | . . . . . Bothacking | -11 -10 -10 -9 -8 ------------ Run | Yrd Mat Min Mat Mat Used RIF Installer . | . . . . . Robots Hacked . | . . . . . Non-combat . | . . . . . Combat . | . . . . . Robot Hacks Applied . | . . . . . Relay Couplers Released 1 | . . . . 1 Machine Destruction 1 | . . . . 1 Fabnet Peak Effective % . | . . . . . Robots Rewired . | . . . . . Allies Hacked . | . . . . . Hacks Repelled . | . . . . . Allies | -11 -10 -10 -9 -8 -------- Run | Yrd Mat Min Mat Mat Total Allies . | . . . . . Largest Group . | . . . . . Highest-Rated Group . | . . . . . Highest-Rated Ally . | . . . . . Total Orders . | . . . . . Ally Attacks . | . . . . . Total Damage . | . . . . . Kills . | . . . . . Allies Corrupted . | . . . . . Allies Melted . | . . . . . Intel | -11 -10 -10 -9 -8 ------- Run | Yrd Mat Min Mat Mat Robot Analysis Total . | . . . . . Derelict Logs Recovered . | . . . . . Drone Launches . | . . . . . Drone Recoveries . | . . . . . Exploration | -11 -10 -10 -9 -8 ------------- Run | Yrd Mat Min Mat Mat Turns Passed 1892 | 47 186 85 499 1075 Spaces Moved 1264 | 31 103 44 383 703 Core 170 | 1 35 . 122 12 Treads 10 | . . . . 10 Legs 195 | . 40 26 5 124 Wheels 343 | 30 28 18 199 68 Hover 546 | . . . 57 489 Flight . | . . . . . Fastest Speed 48 | 50 50 100 50 48 Average Speed 84 | 88 93 111 86 80 Slowest Speed 190 | 90 120 120 160 190 Overloaded Moves . | . . . . . Propulsion Burnouts . | . . . . . Robots Hopped . | . . . . . Cave-ins Triggered . | . . . . . Exploration Rate (%) 26 | 4 32 13 34 50 Regions Visited 4 Branch Regions 1 Pre-discovered Areas . | . . . . . Known Exits Taken . | . . . . . Unknown Exits Taken 4 | 1 1 1 1 . Scrap Searched . | . . . . . Spaces Dug 3 | . . . . 3 Terrain Destroyed 97 | . . . 42 55 Melee 3 | . . . . 3 Projectile . | . . . . . AOE 94 | . . . 42 52 Terrain Rammed . | . . . . . Walls Destroyed . | . . . . . Machines Disabled . | . . . . . Actions | -11 -10 -10 -9 -8 --------- Run | Yrd Mat Min Mat Mat Total 1763 | 42 143 62 480 1036 Wait 143 | . . 6 17 120 Move 1260 | 30 102 43 382 703 Hop . | . . . . . Pick Up 25 | 2 1 1 5 16 Fast Attach 52 | 5 4 1 10 32 Attach 14 | . 2 . 5 7 Detach 12 | . . . 5 7 Swap 15 | . . . 3 12 Drop 38 | . 3 1 7 27 Fire 125 | 5 22 . 31 67 Melee 73 | . 4 10 15 44 Ram 6 | . 5 . . 1 Kick . | . . . . . Crush . | . . . . . Escape Stasis . | . . . . . Rewire . | . . . . . Trap . | . . . . . Miscellaneous . | . . . . . Route ------- -11/Scrapyard -10/Materials (discovered 2 exits: [*Min x2]) -10/Mines -9/Materials -8/Materials (discovered 2 exits: *Fac / *Sto) History --------- Turn | Location | Event 22 | -11/Scrapyard | Discovered new exit (range 15) 48 | -11/Scrapyard | Entered Materials 130 | -10/Materials | Core integrity fell below 50% 170 | -10/Materials | Lost 4 parts (1p1n2w) 175 | -10/Materials | Core integrity fell below 20% 211 | -10/Materials | Discovered new exit (range 4) 214 | -10/Materials | Discovered new exit (range 12) 234 | -10/Materials | Entered Mines 300 | -10/Mines | Build established: Mutant 314 | -10/Mines | Discovered new exit (range 6) 319 | -10/Mines | Entered Materials 319 | -9/Materials | Evolved 2 slots: Utility x2 474 | -9/Materials | Lost 3 parts (1p1n1w) 816 | -9/Materials | Discovered new exit (range 4) 818 | -9/Materials | Entered another Materials area 818 | -8/Materials | Evolved 2 slots: Propulsion x2 873 | -8/Materials | Garrison activated, responded to threat 1013 | -8/Materials | Build established: Scavenger-Mutant 1058 | -8/Materials | Discovered new exit (range 16) 1074 | -8/Materials | Identified exit to Storage 1153 | -8/Materials | Lost 3 parts (3n) 1411 | -8/Materials | Core integrity fell below 50% 1450 | -8/Materials | Lost 10 parts (1p3n3u3w) 1794 | -8/Materials | Discovered new exit (range 16) 1801 | -8/Materials | Identified exit to Factory 1868 | -8/Materials | Core integrity fell below 20% 1893 | -8/Materials | Destroyed by G-47 Trooper with Particle Gun Last Messages --------------- 01789_ Connecting with Recycling Unit... >>Recycling(Report) Matter reserves: 0 Inventory: Empty 01792_ R-06 Scavenger inserts Aluminum Leg into recycling unit. 01794_ EXIT=FOUND 01801_ EXIT=IDENTIFIED: FACTORY 01820_ Airjet destroyed. 01826_ Beam Rifle destroyed. 01826_ Y-45 Defender destroyed. 01842_ K-01 Serf collects debris. 01869_ Airjet destroyed. 01869_ Critical hit (Burn: +37). 01871_ G-47 Trooper Aluminum Leg severed. 01873_ Airjet destroyed. 01874_ Particle Charger destroyed. 01876_ Critical hit (Burn: +37). 01887_ System corrupted: Heat flow error (+140). 01892_ Terminal disabled. 01892_ G-47 Trooper destroyed. Map ----- +----------------------------------------------------+ | ???????????????????? | | ## = []] ??????????????????? | | ?## [] ???????????????????? | | ??# [] ????????????????????? | | ??# #??????????????????????? | | ??# #??????????????????????? | | ??# #??????????????????????? | | ??# #??????????????????????? | | ?## ########## #??????????????????????? | | ?# #???????# #########??????????????????????? | | ?# #???????# #??????????????????????????????? | | ?# %* #?#######+###????????????????????????????? | | ?# = #?# #????????????????????????????? | | ?# #?# #########+##?????????????????? | | ########?# # #?????????????????? | | ????# + #?????????????????? | | " """ ???# # #?????????????????? | | " """ #### = ######## #?????????????????? | | " """ + + #??????# #?????????????????? | | #### #??????# #?????????????????? | | +#####???###########??????# #?????????????????? | | ??????????????????######### #?????????????????? | | ??????????????????# # #?????????????????? | | ??????????????????# #g #?????????????????? | | ??????????????????# "T %gb +?????????????????? | | ??????????????????# """@# #?????????????????? | | ??????????????????# # #?????????????????? | | ??????????????????######### #?????????????????? | | ?????????????????????????? ????????????????? | | ?????????????????????????? ???????????????? | | ?????????????????????????? ??????????????? | | ??????????????????????????####+### ?????????????? | | ?????????????????????????????? ??? ????????????? | | ??????????????????????????????"" ??? ???????????? | | ??????????????????????????????"" ????#??????????? | | ?????????????????????????????????#??????????????? | | ????????????????????????????????????????????????? | | ????????????????????????????????????????????????? | | ????????????????????????????????????????????????? | | ????????????????????????????????????????????????? | | ????????????????????????????????????????????????? | | ????????????????????????????????????????????????? | | ????????????????????????????????????????????????? | | ????????????????????????????????????????????????? | | ????????????????????????????????????????????????? | | ????????????????????????????????????????????????? | | ????????????????????????????????????????????????? | | ????????????????????????????????????????????????? | | ????????????????????????????????????????????????? | | ????????????????????????????????????????????????? | +----------------------------------------------------+ Best States ------------- Heat Dissipation 53 Energy Generation 14 Energy Capacity 250 Matter Stores 300 Matter Capacity 300 Sight Range 16 Robot Scan Range 15 Terrain Scan Density 10 Armor Coverage 150 Melee Speed Boost 20 Evasion (%) 55 Recoil Reduction 1 Particle Charging 15 Item Schematics ----------------- Arm. Wheel | -8/Materials | Scanalyzed EM Pulse Gun | -8/Materials | Scanalyzed Grenade Launcher | -8/Materials | Scanalyzed Robot Schematics ------------------ None Fabricated ------------ Nothing Alien Tech Used ----------------- None Achievements -------------- Fist Fight Challenges ------------ None Game ------ Seed ResetOpticalBlaster Manual? 0 Play Time 00:46:18 Cumulative 19.2 hours Start 2024.04.04 @ 17:45:58 End 2024.04.04 @ 22:13:17 Sessions 1 Manual Loads 0 Difficulty Rogue Special Mode None Game No. 28 Rogue 28 Adventurer 0 Explorer 0 Win Type - Total 0 Types 0/0/0/0/0/0/0/0/0 Lore% 24 Gallery% 25 Achievement% 22 Wizard Run 0 Options --------- Layout 0 ASCII 0 Keyboard 0 Movement Mouse Keybinds 0 Fullscreen 1 Font 18/SmallcapsGlow Map View 38x25 Zoom Use 97% Tactical HUD 1 Map Filters NONE Filters NONE Steam 1 RUN: 3b8dd85b-fb3f-43bd-977f-4de9395cd0ce